[Event "Titled Tuesday Blitz October 12 2021"]
[White "Ghimpu, Samuel-Timotei"]
[Black "Yoo, Christopher Woojin"]
[WhiteFideId "1238175"]
[BlackFideId "30909694"]
[WhiteElo "2012"]
[BlackElo "2105"]
[Result "1-0"]
[Round "05"]
[TimeControl "180+1"]
[Date "2021.10.12"]
[WhiteClock "0:00:09"]
[BlackClock "0:00:01"]

1. e4 {[%clk 0:02:53]}  c5 {[%clk 0:02:59]} 2. Nf3 {[%clk 0:02:53]}  e6 {[%clk 0:02:59]} 3. d4 {[%clk 0:02:52]}  cxd4 {[%clk 0:03:00]} 4. Nxd4 {[%clk 0:02:53]}  Nf6 {[%clk 0:03:01]} 5. Nc3 {[%clk 0:02:53]}  Nc6 {[%clk 0:03:01]} 6. Nxc6 {[%clk 0:02:53]}  bxc6 {[%clk 0:03:01]} 7. e5 {[%clk 0:02:53]}  Nd5 {[%clk 0:03:01]} 8. Ne4 {[%clk 0:02:53]}  Qc7 {[%clk 0:03:01]} 9. f4 {[%clk 0:02:53]}  Rb8 {[%clk 0:03:01]} 10. a3 {[%clk 0:02:51]}  Qb6 {[%clk 0:02:56]} 11. c4 {[%clk 0:02:40]}  Ne3 {[%clk 0:02:53]} 12. Qd3 {[%clk 0:02:36]}  Nxf1 {[%clk 0:02:40]} 13. Rxf1 {[%clk 0:02:34]}  Qb3 {[%clk 0:02:20]} 14. Rf3 {[%clk 0:02:21]}  Qxd3 {[%clk 0:02:15]} 15. Rxd3 {[%clk 0:02:22]}  a5 {[%clk 0:01:54]} 16. b3 {[%clk 0:01:40]}  Ba6 {[%clk 0:01:51]} 17. a4 {[%clk 0:01:37]}  f5 {[%clk 0:01:51]} 18. Nd6+ {[%clk 0:01:24]}  Bxd6 {[%clk 0:01:48]} 19. exd6 {[%clk 0:01:24]}  c5 {[%clk 0:01:42]} 20. Bd2 {[%clk 0:01:17]}  Bb7 {[%clk 0:01:39]} 21. Bxa5 {[%clk 0:01:15]}  Be4 {[%clk 0:01:29]} 22. Rg3 {[%clk 0:01:10]}  Kf7 {[%clk 0:01:29]} 23. Bc3 {[%clk 0:01:02]}  Rhg8 {[%clk 0:01:28]} 24. Ra3 {[%clk 0:00:56]}  h6 {[%clk 0:00:37]} 25. h4 {[%clk 0:00:56]}  g5 {[%clk 0:00:37]} 26. hxg5 {[%clk 0:00:54]}  hxg5 {[%clk 0:00:36]} 27. Rxg5 {[%clk 0:00:51]}  Rxg5 {[%clk 0:00:36]} 28. fxg5 {[%clk 0:00:52]}  Bxg2 {[%clk 0:00:33]} 29. Be5 {[%clk 0:00:43]}  Kg6 {[%clk 0:00:32]} 30. Bf4 {[%clk 0:00:43]}  Bc6 {[%clk 0:00:16]} 31. Kf2 {[%clk 0:00:39]}  Rh8 {[%clk 0:00:14]} 32. a5 {[%clk 0:00:35]}  Rh3 {[%clk 0:00:14]} 33. Be3 {[%clk 0:00:35]}  f4 {[%clk 0:00:12]} 34. Bxc5 {[%clk 0:00:35]}  e5 {[%clk 0:00:12]} 35. a6 {[%clk 0:00:33]}  e4 {[%clk 0:00:12]} 36. a7 {[%clk 0:00:33]}  e3+ {[%clk 0:00:12]} 37. Ke2 {[%clk 0:00:34]}  Ba8 {[%clk 0:00:09]} 38. Kd3 {[%clk 0:00:18]}  Kxg5 {[%clk 0:00:05]} 39. Ra1 {[%clk 0:00:18]}  Kg4 {[%clk 0:00:02]} 40. b4 {[%clk 0:00:19]}  Kf3 {[%clk 0:00:02]} 41. b5 {[%clk 0:00:19]}  Kf2 {[%clk 0:00:01]} 42. b6 {[%clk 0:00:18]}  Rh5 {[%clk 0:00:01]} 43. Bd4 {[%clk 0:00:15]}  Kf3 {[%clk 0:00:01]} 44. Rf1+ {[%clk 0:00:12]}  Kg3 {[%clk 0:00:01]} 45. c5 {[%clk 0:00:11]}  Rd5 {[%clk 0:00:01]} 46. Rb1 {[%clk 0:00:09]}  Kf3 {[%clk 0:00:01]} 47. b7 {[%clk 0:00:09]}  Bxb7 {[%clk 0:00:01]} 48. Rxb7 {[%clk 0:00:10]}  e2 {[%clk 0:00:01]} 49. Rb1 {[%clk 0:00:09]} 1-0


[Site "https://www.chess.com"]

[Event "Titled Tuesday Blitz October 12 2021"]
[White "Jaracz, Pawel"]
[Black "Kollars, Dmitrij"]
[WhiteFideId "1102222"]
[BlackFideId "12909572"]
[WhiteElo "2495"]
[BlackElo "2584"]
[Result "1-0"]
[Round "05"]
[TimeControl "180+1"]
[Date "2021.10.12"]
[WhiteClock "0:01:39"]
[BlackClock "0:00:50"]

1. Nf3 {[%clk 0:03:00]}  Nf6 {[%clk 0:02:59]} 2. c4 {[%clk 0:03:00]}  g6 {[%clk 0:02:59]} 3. b4 {[%clk 0:03:00]}  Bg7 {[%clk 0:03:00]} 4. Bb2 {[%clk 0:03:01]}  O-O {[%clk 0:03:00]} 5. e3 {[%clk 0:03:01]}  d5 {[%clk 0:02:53]} 6. cxd5 {[%clk 0:02:56]}  Nxd5 {[%clk 0:02:54]} 7. Bxg7 {[%clk 0:02:56]}  Kxg7 {[%clk 0:02:54]} 8. Qb3 {[%clk 0:02:55]}  Qd6 {[%clk 0:02:52]} 9. a3 {[%clk 0:02:51]}  e5 {[%clk 0:02:51]} 10. Qb2 {[%clk 0:02:50]}  Re8 {[%clk 0:02:44]} 11. Bc4 {[%clk 0:02:48]}  Bg4 {[%clk 0:02:43]} 12. Be2 {[%clk 0:02:40]}  Nd7 {[%clk 0:02:35]} 13. h3 {[%clk 0:02:39]}  Bxf3 {[%clk 0:02:27]} 14. Bxf3 {[%clk 0:02:39]}  N7f6 {[%clk 0:02:27]} 15. O-O {[%clk 0:02:37]}  e4 {[%clk 0:02:09]} 16. Be2 {[%clk 0:02:37]}  Rad8 {[%clk 0:02:08]} 17. Rc1 {[%clk 0:02:35]}  c6 {[%clk 0:02:07]} 18. b5 {[%clk 0:02:26]}  c5 {[%clk 0:02:07]} 19. Qb3 {[%clk 0:02:19]}  b6 {[%clk 0:02:03]} 20. a4 {[%clk 0:02:14]}  Nb4 {[%clk 0:02:01]} 21. a5 {[%clk 0:02:13]}  Qe5 {[%clk 0:01:52]} 22. Ra3 {[%clk 0:02:10]}  Re7 {[%clk 0:01:50]} 23. axb6 {[%clk 0:02:09]}  axb6 {[%clk 0:01:50]} 24. Bc4 {[%clk 0:02:06]}  Nd3 {[%clk 0:01:43]} 25. Rf1 {[%clk 0:02:00]}  Red7 {[%clk 0:01:41]} 26. f4 {[%clk 0:01:57]}  exf3 {[%clk 0:01:09]} 27. Rxf3 {[%clk 0:01:57]}  Ne4 {[%clk 0:01:08]} 28. Bxd3 {[%clk 0:01:52]}  Rxd3 {[%clk 0:01:08]} 29. Qxf7+ {[%clk 0:01:52]}  Kh6 {[%clk 0:01:07]} 30. Ra7 {[%clk 0:01:51]}  Ng5 {[%clk 0:01:02]} 31. Qf4 {[%clk 0:01:39]}  Qxf4 {[%clk 0:00:50]} 32. Rxf4 {[%clk 0:01:40]}  Rb3 {[%clk 0:00:50]} 33. Rh4# {[%clk 0:01:39]} 1-0


[Site "https://www.chess.com"]

[Event "Titled Tuesday Blitz October 12 2021"]
[White "Koksik_13"]
[Black "Visakh N R"]
[BlackFideId "25012223"]
[WhiteElo "2716"]
[BlackElo "2454"]
[Result "1/2-1/2"]
[Round "05"]
[TimeControl "180+1"]
[Date "2021.10.12"]
[WhiteClock "0:00:19"]
[BlackClock "0:00:54"]

1. e4 {[%clk 0:03:00]}  c6 {[%clk 0:02:54]} 2. d4 {[%clk 0:03:00]}  d5 {[%clk 0:02:53]} 3. Nc3 {[%clk 0:03:01]}  dxe4 {[%clk 0:02:49]} 4. Nxe4 {[%clk 0:03:02]}  Bf5 {[%clk 0:02:49]} 5. Ng3 {[%clk 0:03:02]}  Bg6 {[%clk 0:02:50]} 6. Nh3 {[%clk 0:03:02]}  e6 {[%clk 0:02:45]} 7. Nf4 {[%clk 0:03:03]}  Bd6 {[%clk 0:02:45]} 8. h4 {[%clk 0:03:01]}  Bxf4 {[%clk 0:02:45]} 9. Bxf4 {[%clk 0:03:00]}  h6 {[%clk 0:02:45]} 10. h5 {[%clk 0:03:00]}  Bh7 {[%clk 0:02:45]} 11. c3 {[%clk 0:02:57]}  Nf6 {[%clk 0:02:44]} 12. Bd3 {[%clk 0:02:57]}  Bxd3 {[%clk 0:02:43]} 13. Qxd3 {[%clk 0:02:57]}  Qd5 {[%clk 0:02:40]} 14. c4 {[%clk 0:02:55]}  Qa5+ {[%clk 0:02:05]} 15. Bd2 {[%clk 0:02:55]}  Qb6 {[%clk 0:02:05]} 16. O-O-O {[%clk 0:02:52]}  Na6 {[%clk 0:02:06]} 17. Be3 {[%clk 0:02:41]}  O-O-O {[%clk 0:01:56]} 18. a3 {[%clk 0:02:25]}  c5 {[%clk 0:01:30]} 19. Ne4 {[%clk 0:02:22]}  cxd4 {[%clk 0:01:26]} 20. Bxd4 {[%clk 0:02:21]}  Nxe4 {[%clk 0:01:20]} 21. Qxe4 {[%clk 0:02:20]}  Nc5 {[%clk 0:01:19]} 22. Bxc5 {[%clk 0:02:11]}  Qxc5 {[%clk 0:01:20]} 23. Qf4 {[%clk 0:01:54]}  Qg5 {[%clk 0:01:19]} 24. Qxg5 {[%clk 0:01:53]}  hxg5 {[%clk 0:01:19]} 25. g4 {[%clk 0:01:54]}  Rxd1+ {[%clk 0:01:11]} 26. Rxd1 {[%clk 0:01:53]}  Rf8 {[%clk 0:01:09]} 27. Rd6 {[%clk 0:01:51]}  Kc7 {[%clk 0:01:09]} 28. c5 {[%clk 0:01:51]}  Rg8 {[%clk 0:01:08]} 29. Rd3 {[%clk 0:01:32]}  g6 {[%clk 0:01:05]} 30. Rf3 {[%clk 0:01:29]}  f5 {[%clk 0:01:04]} 31. hxg6 {[%clk 0:01:28]}  f4 {[%clk 0:01:04]} 32. Rd3 {[%clk 0:01:26]}  Rxg6 {[%clk 0:01:02]} 33. Rd6 {[%clk 0:01:26]}  Rh6 {[%clk 0:01:00]} 34. Kd1 {[%clk 0:01:24]}  Rh4 {[%clk 0:00:58]} 35. Rxe6 {[%clk 0:01:20]}  Rxg4 {[%clk 0:00:58]} 36. b4 {[%clk 0:01:20]}  Rg1+ {[%clk 0:00:55]} 37. Ke2 {[%clk 0:01:19]}  g4 {[%clk 0:00:56]} 38. Rg6 {[%clk 0:01:19]}  g3 {[%clk 0:00:53]} 39. fxg3 {[%clk 0:01:18]}  Rxg3 {[%clk 0:00:53]} 40. Rxg3 {[%clk 0:00:39]}  fxg3 {[%clk 0:00:54]} 41. b5 {[%clk 0:00:32]}  Kd7 {[%clk 0:00:49]} 42. Kf3 {[%clk 0:00:19]}  Ke6 {[%clk 0:00:49]} 43. Kxg3 {[%clk 0:00:17]}  Kd5 {[%clk 0:00:49]} 44. c6 {[%clk 0:00:17]}  bxc6 {[%clk 0:00:50]} 45. bxc6 {[%clk 0:00:18]}  Kxc6 {[%clk 0:00:51]} 46. Kf3 {[%clk 0:00:18]}  Kb5 {[%clk 0:00:51]} 47. Ke3 {[%clk 0:00:16]}  Ka4 {[%clk 0:00:51]} 48. Kd3 {[%clk 0:00:16]}  Kb3 {[%clk 0:00:49]} 49. a4 {[%clk 0:00:16]}  a5 {[%clk 0:00:49]} 50. Kd2 {[%clk 0:00:15]}  Kb2 {[%clk 0:00:50]} 51. Kd1 {[%clk 0:00:15]}  Kb1 {[%clk 0:00:50]} 52. Kd2 {[%clk 0:00:16]}  Kb2 {[%clk 0:00:51]} 53. Kd1 {[%clk 0:00:16]}  Kb3 {[%clk 0:00:50]} 54. Kc1 {[%clk 0:00:16]}  Kxa4 {[%clk 0:00:51]} 55. Kb1 {[%clk 0:00:17]}  Kb4 {[%clk 0:00:51]} 56. Ka1 {[%clk 0:00:18]}  a4 {[%clk 0:00:52]} 57. Kb1 {[%clk 0:00:19]}  a3 {[%clk 0:00:53]} 58. Ka1 {[%clk 0:00:20]}  a2 {[%clk 0:00:54]} 59. Kxa2 {[%clk 0:00:19]} 1/2-1/2


[Site "https://www.chess.com"]

[Event "Titled Tuesday Blitz October 12 2021"]
[White "Martinovici, Ilia"]
[Black "Sviridov, Valery"]
[WhiteFideId "13907034"]
[BlackFideId "4120680"]
[WhiteElo "2303"]
[BlackElo "2454"]
[Result "1/2-1/2"]
[Round "05"]
[TimeControl "180+1"]
[Date "2021.10.12"]
[WhiteClock "0:00:07"]
[BlackClock "0:00:16"]

1. d4 {[%clk 0:03:00]}  g6 {[%clk 0:02:59]} 2. c4 {[%clk 0:03:01]}  Bg7 {[%clk 0:02:59]} 3. Nc3 {[%clk 0:03:01]}  d6 {[%clk 0:02:59]} 4. e4 {[%clk 0:03:01]}  e5 {[%clk 0:02:59]} 5. d5 {[%clk 0:03:01]}  f5 {[%clk 0:02:59]} 6. f3 {[%clk 0:02:55]}  Nf6 {[%clk 0:02:58]} 7. Bg5 {[%clk 0:02:53]}  h6 {[%clk 0:02:56]} 8. Be3 {[%clk 0:02:53]}  O-O {[%clk 0:02:52]} 9. exf5 {[%clk 0:02:50]}  gxf5 {[%clk 0:02:52]} 10. Qd2 {[%clk 0:02:49]}  f4 {[%clk 0:02:19]} 11. Bf2 {[%clk 0:02:48]}  Bf5 {[%clk 0:02:19]} 12. Bd3 {[%clk 0:02:49]}  Qd7 {[%clk 0:02:18]} 13. Nge2 {[%clk 0:02:48]}  Na6 {[%clk 0:02:18]} 14. O-O-O {[%clk 0:02:40]}  Rae8 {[%clk 0:02:16]} 15. Bxf5 {[%clk 0:02:38]}  Qxf5 {[%clk 0:02:17]} 16. Qc2 {[%clk 0:02:38]}  Qxc2+ {[%clk 0:02:16]} 17. Kxc2 {[%clk 0:02:39]}  e4 {[%clk 0:02:14]} 18. fxe4 {[%clk 0:02:32]}  Nxe4 {[%clk 0:02:13]} 19. Bd4 {[%clk 0:02:25]}  f3 {[%clk 0:01:26]} 20. gxf3 {[%clk 0:02:21]}  Nxc3 {[%clk 0:01:18]} 21. Nxc3 {[%clk 0:02:18]}  Bxd4 {[%clk 0:01:15]} 22. Rxd4 {[%clk 0:02:19]}  Rxf3 {[%clk 0:01:16]} 23. Rg4+ {[%clk 0:02:17]}  Kh7 {[%clk 0:01:16]} 24. Rg2 {[%clk 0:02:11]}  Nb4+ {[%clk 0:01:13]} 25. Kb3 {[%clk 0:02:10]}  Nd3 {[%clk 0:01:13]} 26. Rhg1 {[%clk 0:02:05]}  Re7 {[%clk 0:01:14]} 27. a3 {[%clk 0:01:58]}  Rf4 {[%clk 0:01:12]} 28. Rg3 {[%clk 0:01:32]}  Nc5+ {[%clk 0:01:09]} 29. Kb4 {[%clk 0:01:16]}  Rf2 {[%clk 0:01:08]} 30. R1g2 {[%clk 0:01:08]}  Rxg2 {[%clk 0:01:09]} 31. Rxg2 {[%clk 0:01:09]}  Re3 {[%clk 0:01:09]} 32. a4 {[%clk 0:00:43]}  a6 {[%clk 0:01:08]} 33. a5 {[%clk 0:00:42]}  h5 {[%clk 0:01:06]} 34. Rg5 {[%clk 0:00:41]}  Kh6 {[%clk 0:01:04]} 35. Rg8 {[%clk 0:00:39]}  h4 {[%clk 0:01:04]} 36. Rc8 {[%clk 0:00:35]}  Rh3 {[%clk 0:01:04]} 37. Rxc7 {[%clk 0:00:25]}  Rxh2 {[%clk 0:01:04]} 38. Ka3 {[%clk 0:00:20]}  h3 {[%clk 0:01:02]} 39. b4 {[%clk 0:00:20]}  Rc2 {[%clk 0:00:58]} 40. bxc5 {[%clk 0:00:14]}  h2 {[%clk 0:00:58]} 41. Rc8 {[%clk 0:00:10]}  Kg7 {[%clk 0:00:58]} 42. cxd6 {[%clk 0:00:05]}  h1=Q {[%clk 0:00:57]} 43. d7 {[%clk 0:00:06]}  Rxc3+ {[%clk 0:00:57]} 44. Kb4 {[%clk 0:00:06]}  Qc1 {[%clk 0:00:31]} 45. Rg8+ {[%clk 0:00:02]}  Kh6 {[%clk 0:00:25]} 46. Kc5 {[%clk 0:00:03]}  Rxc4+ {[%clk 0:00:24]} 47. Kb6 {[%clk 0:00:03]}  Qb2+ {[%clk 0:00:24]} 48. Ka7 {[%clk 0:00:03]}  Qd4+ {[%clk 0:00:24]} 49. Ka8 {[%clk 0:00:03]}  Qxd5 {[%clk 0:00:14]} 50. d8=Q {[%clk 0:00:04]}  Qxd8+ {[%clk 0:00:14]} 51. Rxd8 {[%clk 0:00:05]}  Rb4 {[%clk 0:00:15]} 52. Rd7 {[%clk 0:00:04]}  Rb5 {[%clk 0:00:15]} 53. Rxb7 {[%clk 0:00:04]}  Rxa5 {[%clk 0:00:16]} 54. Ka7 {[%clk 0:00:04]}  Ra1 {[%clk 0:00:16]} 55. Rb6+ {[%clk 0:00:05]}  Kg5 {[%clk 0:00:17]} 56. Rxa6 {[%clk 0:00:06]}  Rxa6+ {[%clk 0:00:16]} 57. Kxa6 {[%clk 0:00:07]} 1/2-1/2


[Site "https://www.chess.com"]

[Event "Titled Tuesday Blitz October 12 2021"]
[White "Mikhalevski, Victor"]
[Black "Leenhouts, Koen"]
[WhiteFideId "2801914"]
[BlackFideId "1008439"]
[WhiteElo "2577"]
[BlackElo "2409"]
[Result "1-0"]
[Round "05"]
[TimeControl "180+1"]
[Date "2021.10.12"]
[WhiteClock "0:01:06"]
[BlackClock "0:00:06"]

1. d4 {[%clk 0:03:00]}  d5 {[%clk 0:02:46]} 2. c4 {[%clk 0:03:01]}  c6 {[%clk 0:02:46]} 3. cxd5 {[%clk 0:03:00]}  cxd5 {[%clk 0:02:46]} 4. Bg5 {[%clk 0:03:00]}  Nc6 {[%clk 0:02:44]} 5. Nc3 {[%clk 0:02:59]}  Nf6 {[%clk 0:02:34]} 6. Bxf6 {[%clk 0:02:59]}  gxf6 {[%clk 0:02:34]} 7. e3 {[%clk 0:02:57]}  e6 {[%clk 0:02:28]} 8. Bd3 {[%clk 0:02:54]}  Be7 {[%clk 0:02:15]} 9. Nf3 {[%clk 0:02:53]}  a6 {[%clk 0:01:56]} 10. Rc1 {[%clk 0:02:51]}  Bd7 {[%clk 0:01:55]} 11. O-O {[%clk 0:02:50]}  O-O {[%clk 0:01:48]} 12. e4 {[%clk 0:02:45]}  dxe4 {[%clk 0:01:43]} 13. Bxe4 {[%clk 0:02:42]}  f5 {[%clk 0:01:37]} 14. Bb1 {[%clk 0:02:41]}  Bf6 {[%clk 0:01:22]} 15. d5 {[%clk 0:02:33]}  Ne7 {[%clk 0:01:16]} 16. Nd4 {[%clk 0:02:29]}  e5 {[%clk 0:00:51]} 17. Nb3 {[%clk 0:02:20]}  Rc8 {[%clk 0:00:44]} 18. Qh5 {[%clk 0:02:05]}  e4 {[%clk 0:00:41]} 19. f3 {[%clk 0:01:56]}  e3 {[%clk 0:00:24]} 20. f4 {[%clk 0:01:53]}  Qb6 {[%clk 0:00:19]} 21. Kh1 {[%clk 0:01:49]}  Kh8 {[%clk 0:00:17]} 22. Rf3 {[%clk 0:01:46]}  Rg8 {[%clk 0:00:16]} 23. Qxf7 {[%clk 0:01:35]}  Rg7 {[%clk 0:00:14]} 24. Qh5 {[%clk 0:01:34]}  Rcg8 {[%clk 0:00:15]} 25. Rh3 {[%clk 0:01:34]}  Be8 {[%clk 0:00:11]} 26. Qh6 {[%clk 0:01:23]}  Ng6 {[%clk 0:00:10]} 27. Bxf5 {[%clk 0:01:20]}  Qd6 {[%clk 0:00:09]} 28. Ne4 {[%clk 0:01:16]}  Qxf4 {[%clk 0:00:07]} 29. Nxf6 {[%clk 0:01:13]}  e2 {[%clk 0:00:06]} 30. Qxf4 {[%clk 0:01:07]}  Nxf4 {[%clk 0:00:06]} 31. Re3 {[%clk 0:01:06]} 1-0


[Site "https://www.chess.com"]

[Event "Titled Tuesday Blitz October 12 2021"]
[White "Moskalenko, Alexander"]
[Black "Bortnyk, Olexandr"]
[WhiteFideId "4155351"]
[BlackFideId "14120828"]
[WhiteElo "2515"]
[BlackElo "2723"]
[Result "1-0"]
[Round "05"]
[TimeControl "180+1"]
[Date "2021.10.12"]
[WhiteClock "0:01:44"]
[BlackClock "0:00:03"]

1. d4 {[%clk 0:03:00]}  Nf6 {[%clk 0:02:50]} 2. c4 {[%clk 0:03:00]}  d6 {[%clk 0:02:50]} 3. Nf3 {[%clk 0:02:59]}  g6 {[%clk 0:02:50]} 4. Nc3 {[%clk 0:02:59]}  Bf5 {[%clk 0:02:50]} 5. Qb3 {[%clk 0:02:58]}  Qc8 {[%clk 0:02:50]} 6. g3 {[%clk 0:02:58]}  Bg7 {[%clk 0:02:48]} 7. Bg2 {[%clk 0:02:58]}  O-O {[%clk 0:01:48]} 8. Nh4 {[%clk 0:02:54]}  Nc6 {[%clk 0:01:42]} 9. Nxf5 {[%clk 0:02:46]}  Qxf5 {[%clk 0:01:41]} 10. e3 {[%clk 0:02:44]}  e5 {[%clk 0:01:20]} 11. d5 {[%clk 0:02:09]}  Na5 {[%clk 0:01:19]} 12. Qb5 {[%clk 0:02:08]}  b6 {[%clk 0:01:18]} 13. e4 {[%clk 0:02:08]}  Qc8 {[%clk 0:00:51]} 14. Be3 {[%clk 0:02:08]}  a6 {[%clk 0:00:51]} 15. Qa4 {[%clk 0:02:06]}  Ng4 {[%clk 0:00:51]} 16. Bd2 {[%clk 0:02:04]}  f5 {[%clk 0:00:49]} 17. Bh3 {[%clk 0:02:00]}  Nxf2 {[%clk 0:00:13]} 18. Kxf2 {[%clk 0:02:01]}  fxe4+ {[%clk 0:00:13]} 19. Kg2 {[%clk 0:02:01]}  Rf2+ {[%clk 0:00:14]} 20. Kxf2 {[%clk 0:01:59]}  Qxh3 {[%clk 0:00:15]} 21. Raf1 {[%clk 0:01:55]}  Rf8+ {[%clk 0:00:11]} 22. Ke1 {[%clk 0:01:54]}  Rf3 {[%clk 0:00:11]} 23. Qe8+ {[%clk 0:01:53]}  Bf8 {[%clk 0:00:09]} 24. Rxf3 {[%clk 0:01:52]}  exf3 {[%clk 0:00:08]} 25. Qe6+ {[%clk 0:01:51]}  Qxe6 {[%clk 0:00:08]} 26. dxe6 {[%clk 0:01:52]}  Nxc4 {[%clk 0:00:09]} 27. Rf1 {[%clk 0:01:49]}  Nxb2 {[%clk 0:00:07]} 28. Rxf3 {[%clk 0:01:49]}  c6 {[%clk 0:00:06]} 29. Bh6 {[%clk 0:01:45]}  Nd3+ {[%clk 0:00:03]} 30. Rxd3 {[%clk 0:01:44]}  Bxh6 {[%clk 0:00:03]} 31. Rxd6 {[%clk 0:01:44]} 1-0


[Site "https://www.chess.com"]

[Event "Titled Tuesday Blitz October 12 2021"]
[White "Perez Ponsa, Federico"]
[Black "Indjic, Aleksandar"]
[WhiteFideId "117927"]
[BlackFideId "911925"]
[WhiteElo "2672"]
[BlackElo "2643"]
[Result "0-1"]
[Round "05"]
[TimeControl "180+1"]
[Date "2021.10.12"]
[WhiteClock "0:01:21"]
[BlackClock "0:01:03"]

1. e4 {[%clk 0:02:56]}  c5 {[%clk 0:02:58]} 2. Nf3 {[%clk 0:02:56]}  Nc6 {[%clk 0:02:58]} 3. Bb5 {[%clk 0:02:55]}  g6 {[%clk 0:02:58]} 4. O-O {[%clk 0:02:54]}  Bg7 {[%clk 0:02:56]} 5. Re1 {[%clk 0:02:54]}  Nf6 {[%clk 0:02:55]} 6. e5 {[%clk 0:02:53]}  Nd5 {[%clk 0:02:52]} 7. Nc3 {[%clk 0:02:53]}  Nc7 {[%clk 0:02:51]} 8. Bxc6 {[%clk 0:02:53]}  dxc6 {[%clk 0:02:51]} 9. d3 {[%clk 0:02:51]}  b6 {[%clk 0:02:51]} 10. Ne4 {[%clk 0:02:48]}  Ne6 {[%clk 0:02:50]} 11. Be3 {[%clk 0:02:47]}  h6 {[%clk 0:02:48]} 12. Qd2 {[%clk 0:02:46]}  Bb7 {[%clk 0:02:45]} 13. a3 {[%clk 0:02:45]}  Kf8 {[%clk 0:02:42]} 14. b4 {[%clk 0:02:45]}  cxb4 {[%clk 0:02:22]} 15. axb4 {[%clk 0:02:46]}  Kg8 {[%clk 0:02:21]} 16. Ra3 {[%clk 0:02:37]}  Kh7 {[%clk 0:02:21]} 17. h4 {[%clk 0:02:31]}  Qb8 {[%clk 0:02:20]} 18. Qc3 {[%clk 0:02:19]}  Rd8 {[%clk 0:02:15]} 19. Rea1 {[%clk 0:02:18]}  Kg8 {[%clk 0:02:05]} 20. h5 {[%clk 0:02:16]}  g5 {[%clk 0:02:03]} 21. Ng3 {[%clk 0:02:17]}  c5 {[%clk 0:02:02]} 22. Nf5 {[%clk 0:02:07]}  Bxf3 {[%clk 0:01:58]} 23. Nxg7 {[%clk 0:02:05]}  Kxg7 {[%clk 0:01:50]} 24. gxf3 {[%clk 0:02:04]}  Qb7 {[%clk 0:01:34]} 25. bxc5 {[%clk 0:01:52]}  bxc5 {[%clk 0:01:31]} 26. Qc4 {[%clk 0:01:45]}  Qxf3 {[%clk 0:01:17]} 27. Rxa7 {[%clk 0:01:43]}  Rxa7 {[%clk 0:01:15]} 28. Rxa7 {[%clk 0:01:44]}  Rd4 {[%clk 0:01:06]} 29. Bxd4 {[%clk 0:01:20]}  Nf4 {[%clk 0:01:05]} 30. e6+ {[%clk 0:01:21]}  Kh7 {[%clk 0:01:03]} 0-1


[Site "https://www.chess.com"]

[Event "Titled Tuesday Blitz October 12 2021"]
[White "Salinas Herrera, Pablo"]
[Black "Fonseca Manrique, Enrique"]
[WhiteFideId "3407128"]
[BlackFideId "5114330"]
[WhiteElo "2541"]
[BlackElo "2536"]
[Result "1-0"]
[Round "05"]
[TimeControl "180+1"]
[Date "2021.10.12"]
[WhiteClock "0:00:42"]
[BlackClock "0:00:21"]

1. e4 {[%clk 0:03:00]}  c5 {[%clk 0:02:59]} 2. Nf3 {[%clk 0:03:00]}  e6 {[%clk 0:03:00]} 3. d4 {[%clk 0:02:56]}  cxd4 {[%clk 0:03:01]} 4. Nxd4 {[%clk 0:02:56]}  Nc6 {[%clk 0:03:01]} 5. Nc3 {[%clk 0:02:51]}  Qc7 {[%clk 0:03:01]} 6. Be3 {[%clk 0:02:39]}  a6 {[%clk 0:02:59]} 7. Qf3 {[%clk 0:02:29]}  b5 {[%clk 0:02:58]} 8. O-O-O {[%clk 0:02:26]}  Bb7 {[%clk 0:02:57]} 9. Qg3 {[%clk 0:02:25]}  Qxg3 {[%clk 0:02:52]} 10. hxg3 {[%clk 0:02:24]}  b4 {[%clk 0:02:32]} 11. Na4 {[%clk 0:02:22]}  Nf6 {[%clk 0:02:31]} 12. f3 {[%clk 0:02:20]}  d6 {[%clk 0:02:20]} 13. Nb6 {[%clk 0:02:14]}  Rb8 {[%clk 0:02:18]} 14. Nxc6 {[%clk 0:02:06]}  Bxc6 {[%clk 0:02:18]} 15. Bxa6 {[%clk 0:02:06]}  Be7 {[%clk 0:02:09]} 16. Be2 {[%clk 0:01:56]}  O-O {[%clk 0:02:03]} 17. Nc4 {[%clk 0:01:53]}  d5 {[%clk 0:01:58]} 18. Ne5 {[%clk 0:01:53]}  Ba8 {[%clk 0:01:54]} 19. exd5 {[%clk 0:01:52]}  Nxd5 {[%clk 0:01:53]} 20. Bd4 {[%clk 0:01:51]}  Rfc8 {[%clk 0:01:46]} 21. Bd3 {[%clk 0:01:48]}  h6 {[%clk 0:01:43]} 22. Rhe1 {[%clk 0:01:34]}  Nc3 {[%clk 0:01:28]} 23. Bxc3 {[%clk 0:01:13]}  bxc3 {[%clk 0:01:27]} 24. b3 {[%clk 0:01:12]}  Ba3+ {[%clk 0:01:21]} 25. Kb1 {[%clk 0:01:12]}  Rc5 {[%clk 0:00:39]} 26. Nd7 {[%clk 0:01:08]}  Rbc8 {[%clk 0:00:37]} 27. Nxc5 {[%clk 0:01:08]}  Bxc5 {[%clk 0:00:38]} 28. Be4 {[%clk 0:01:08]}  Bf2 {[%clk 0:00:36]} 29. Re2 {[%clk 0:01:04]}  Bxe4 {[%clk 0:00:35]} 30. Rxf2 {[%clk 0:01:01]}  Bd5 {[%clk 0:00:35]} 31. Re2 {[%clk 0:01:00]}  g5 {[%clk 0:00:32]} 32. Re3 {[%clk 0:01:00]}  h5 {[%clk 0:00:29]} 33. Rdd3 {[%clk 0:01:00]}  h4 {[%clk 0:00:30]} 34. gxh4 {[%clk 0:01:00]}  gxh4 {[%clk 0:00:31]} 35. Rxc3 {[%clk 0:00:59]}  Rb8 {[%clk 0:00:30]} 36. Rcd3 {[%clk 0:00:58]}  Kg7 {[%clk 0:00:30]} 37. Rd4 {[%clk 0:00:58]}  Rh8 {[%clk 0:00:29]} 38. Kb2 {[%clk 0:00:58]}  Kf6 {[%clk 0:00:29]} 39. a4 {[%clk 0:00:57]}  Rh5 {[%clk 0:00:28]} 40. a5 {[%clk 0:00:56]}  Bc6 {[%clk 0:00:27]} 41. b4 {[%clk 0:00:54]}  Rg5 {[%clk 0:00:25]} 42. Rxh4 {[%clk 0:00:50]}  Rxg2 {[%clk 0:00:25]} 43. Rf4+ {[%clk 0:00:50]}  Ke7 {[%clk 0:00:25]} 44. Rc4 {[%clk 0:00:51]}  Bb5 {[%clk 0:00:24]} 45. Rc5 {[%clk 0:00:51]}  Bf1 {[%clk 0:00:24]} 46. b5 {[%clk 0:00:49]}  Kd6 {[%clk 0:00:24]} 47. Rec3 {[%clk 0:00:49]}  f5 {[%clk 0:00:20]} 48. a6 {[%clk 0:00:49]}  Rg7 {[%clk 0:00:20]} 49. Ka3 {[%clk 0:00:44]}  e5 {[%clk 0:00:21]} 50. Kb4 {[%clk 0:00:43]}  e4 {[%clk 0:00:21]} 51. Rxf5 {[%clk 0:00:42]} 1-0


[Site "https://www.chess.com"]